[Event "Titled Tuesday Blitz May 23 Late 2023"]
[White "Dmitriev, Sergey"]
[Black "zsizsi99"]
[WhiteFideId "14101785"]
[WhiteElo "2132"]
[BlackElo "2402"]
[Result "0-1"]
[Round "02"]
[TimeControl "180+2"]
[Date "2023.05.23"]
[WhiteClock "0:01:36"]
[BlackClock "0:01:15"]

1. d4 {[%clk 0:03:00]}  Nf6 {[%clk 0:02:57]} 2. Nf3 {[%clk 0:02:56]}  d5 {[%clk 0:02:47]} 3. Bf4 {[%clk 0:02:56]}  c5 {[%clk 0:02:45]} 4. e3 {[%clk 0:02:56]}  Nc6 {[%clk 0:02:46]} 5. c3 {[%clk 0:02:56]}  Qb6 {[%clk 0:02:45]} 6. Qb3 {[%clk 0:02:54]}  c4 {[%clk 0:02:45]} 7. Qxb6 {[%clk 0:02:54]}  axb6 {[%clk 0:02:45]} 8. Nbd2 {[%clk 0:02:53]}  b5 {[%clk 0:02:43]} 9. Be2 {[%clk 0:02:53]}  b4 {[%clk 0:02:42]} 10. O-O {[%clk 0:02:49]}  Bd7 {[%clk 0:02:37]} 11. Ne5 {[%clk 0:02:45]}  e6 {[%clk 0:02:36]} 12. Nxd7 {[%clk 0:02:44]}  Kxd7 {[%clk 0:02:33]} 13. Nf3 {[%clk 0:02:43]}  h6 {[%clk 0:02:19]} 14. Ne5+ {[%clk 0:02:42]}  Nxe5 {[%clk 0:02:18]} 15. Bxe5 {[%clk 0:02:40]}  bxc3 {[%clk 0:02:17]} 16. bxc3 {[%clk 0:02:39]}  Ra3 {[%clk 0:02:17]} 17. Rfc1 {[%clk 0:02:39]}  Bd6 {[%clk 0:02:15]} 18. Bxd6 {[%clk 0:02:36]}  Kxd6 {[%clk 0:02:15]} 19. Rcb1 {[%clk 0:02:35]}  Kc6 {[%clk 0:02:14]} 20. Rc1 {[%clk 0:02:33]}  Rha8 {[%clk 0:02:13]} 21. Rc2 {[%clk 0:02:33]}  Ne4 {[%clk 0:02:13]} 22. Bf3 {[%clk 0:02:29]}  Nxc3 {[%clk 0:02:08]} 23. g3 {[%clk 0:02:27]}  Rxa2 {[%clk 0:02:00]} 24. Raxa2 {[%clk 0:02:21]}  Nxa2 {[%clk 0:02:01]} 25. e4 {[%clk 0:02:21]}  b5 {[%clk 0:01:55]} 26. exd5+ {[%clk 0:02:21]}  exd5 {[%clk 0:01:55]} 27. Re2 {[%clk 0:02:20]}  c3 {[%clk 0:01:51]} 28. Re5 {[%clk 0:02:15]}  Rd8 {[%clk 0:01:50]} 29. Bd1 {[%clk 0:02:12]}  Nb4 {[%clk 0:01:49]} 30. Re2 {[%clk 0:02:08]}  Na6 {[%clk 0:01:45]} 31. Bc2 {[%clk 0:02:07]}  b4 {[%clk 0:01:42]} 32. Re7 {[%clk 0:02:06]}  Rd7 {[%clk 0:01:41]} 33. Re8 {[%clk 0:02:06]}  Rb7 {[%clk 0:01:31]} 34. Rc8+ {[%clk 0:02:00]}  Kd6 {[%clk 0:01:30]} 35. Rd8+ {[%clk 0:01:58]}  Ke7 {[%clk 0:01:28]} 36. Ra8 {[%clk 0:01:53]}  Nc7 {[%clk 0:01:25]} 37. Rc8 {[%clk 0:01:46]}  Ne6 {[%clk 0:01:23]} 38. Bb3 {[%clk 0:01:43]}  Rc7 {[%clk 0:01:18]} 39. Rb8 {[%clk 0:01:39]}  Nxd4 {[%clk 0:01:15]} 40. Rxb4 {[%clk 0:01:36]}  Nxb3 {[%clk 0:01:15]} 41. Rxb3 {[%clk 0:01:36]}  c2 {[%clk 0:01:16]} 42. Re3+ {[%clk 0:01:36]}  Kf8 {[%clk 0:01:15]} 0-1


[Site "https://www.chess.com"]

[Event "Titled Tuesday Blitz May 23 Late 2023"]
[White "Vaglio Munoz, Jaime"]
[Black "Castillo Pena, Patricia Evarista"]
[WhiteFideId "6500145"]
[BlackFideId "6412106"]
[WhiteElo "2199"]
[BlackElo "1919"]
[Result "1-0"]
[Round "02"]
[TimeControl "180+2"]
[Date "2023.05.23"]
[WhiteClock "0:00:54"]
[BlackClock "0:00:00"]

1. Nf3 {[%clk 0:03:00]}  d5 {[%clk 0:02:59]} 2. c4 {[%clk 0:02:59]}  c6 {[%clk 0:02:58]} 3. b3 {[%clk 0:02:58]}  Nf6 {[%clk 0:02:58]} 4. Bb2 {[%clk 0:02:58]}  e6 {[%clk 0:02:57]} 5. g3 {[%clk 0:02:56]}  Nbd7 {[%clk 0:02:57]} 6. Bg2 {[%clk 0:02:56]}  Bd6 {[%clk 0:02:57]} 7. O-O {[%clk 0:02:56]}  O-O {[%clk 0:02:57]} 8. d3 {[%clk 0:02:56]}  Qe7 {[%clk 0:02:57]} 9. Re1 {[%clk 0:02:56]}  e5 {[%clk 0:02:45]} 10. cxd5 {[%clk 0:02:54]}  cxd5 {[%clk 0:02:45]} 11. e4 {[%clk 0:02:54]}  d4 {[%clk 0:02:38]} 12. a3 {[%clk 0:02:52]}  b6 {[%clk 0:02:35]} 13. b4 {[%clk 0:02:52]}  Ba6 {[%clk 0:02:30]} 14. Qb3 {[%clk 0:02:51]}  Rac8 {[%clk 0:02:27]} 15. Nbd2 {[%clk 0:02:50]}  Rc7 {[%clk 0:02:21]} 16. Bh3 {[%clk 0:02:49]}  Rfc8 {[%clk 0:02:12]} 17. Rec1 {[%clk 0:02:17]}  Rxc1+ {[%clk 0:02:11]} 18. Rxc1 {[%clk 0:02:15]}  Rxc1+ {[%clk 0:02:11]} 19. Bxc1 {[%clk 0:02:16]}  Nf8 {[%clk 0:02:01]} 20. Nc4 {[%clk 0:02:14]}  Bxc4 {[%clk 0:01:56]} 21. Qxc4 {[%clk 0:02:13]}  Qc7 {[%clk 0:01:49]} 22. Nd2 {[%clk 0:02:09]}  b5 {[%clk 0:01:30]} 23. Qxc7 {[%clk 0:02:02]}  Bxc7 {[%clk 0:01:31]} 24. Nb3 {[%clk 0:02:00]}  Bb6 {[%clk 0:01:28]} 25. f4 {[%clk 0:01:58]}  exf4 {[%clk 0:01:20]} 26. gxf4 {[%clk 0:01:57]}  Ne6 {[%clk 0:01:14]} 27. Kf2 {[%clk 0:01:55]}  Kf8 {[%clk 0:01:11]} 28. Kf3 {[%clk 0:01:54]}  Ke7 {[%clk 0:01:07]} 29. Bd2 {[%clk 0:01:54]}  h6 {[%clk 0:01:02]} 30. Be1 {[%clk 0:01:53]}  g5 {[%clk 0:00:54]} 31. Bxe6 {[%clk 0:01:30]}  Kxe6 {[%clk 0:00:49]} 32. Bf2 {[%clk 0:01:30]}  gxf4 {[%clk 0:00:36]} 33. Bxd4 {[%clk 0:01:28]}  Nd7 {[%clk 0:00:25]} 34. Bc3 {[%clk 0:01:24]}  Ne5+ {[%clk 0:00:20]} 35. Bxe5 {[%clk 0:01:15]}  Kxe5 {[%clk 0:00:21]} 36. Kg4 {[%clk 0:01:12]}  h5+ {[%clk 0:00:18]} 37. Kf3 {[%clk 0:01:11]}  f5 {[%clk 0:00:17]} 38. exf5 {[%clk 0:01:05]}  Kxf5 {[%clk 0:00:18]} 39. d4 {[%clk 0:01:03]}  h4 {[%clk 0:00:16]} 40. h3 {[%clk 0:01:03]}  Ke6 {[%clk 0:00:07]} 41. Ke4 {[%clk 0:01:02]}  f3 {[%clk 0:00:05]} 42. Kxf3 {[%clk 0:00:55]}  Kd5 {[%clk 0:00:06]} 43. Ke3 {[%clk 0:00:55]}  Kc4 {[%clk 0:00:00]} 44. Nc5 {[%clk 0:00:54]} 1-0


[Site "https://www.chess.com"]

[Event "Titled Tuesday Blitz May 23 Late 2023"]
[White "Nihal Sarin"]
[Black "Holt, Conrad"]
[WhiteFideId "25092340"]
[BlackFideId "2034387"]
[WhiteElo "2689"]
[BlackElo "2592"]
[Result "1-0"]
[Round "03"]
[TimeControl "180+2"]
[Date "2023.05.23"]
[WhiteClock "0:00:36"]
[BlackClock "0:00:00"]

1. c4 {[%clk 0:03:00]}  c6 {[%clk 0:02:57]} 2. Nf3 {[%clk 0:02:59]}  d5 {[%clk 0:02:58]} 3. e3 {[%clk 0:03:00]}  Nf6 {[%clk 0:02:55]} 4. Nc3 {[%clk 0:03:00]}  e6 {[%clk 0:02:55]} 5. d4 {[%clk 0:03:00]}  Nbd7 {[%clk 0:02:54]} 6. Bd2 {[%clk 0:03:01]}  Bd6 {[%clk 0:02:50]} 7. c5 {[%clk 0:03:01]}  Bc7 {[%clk 0:02:50]} 8. b4 {[%clk 0:03:02]}  O-O {[%clk 0:02:46]} 9. b5 {[%clk 0:03:02]}  cxb5 {[%clk 0:02:11]} 10. Nxb5 {[%clk 0:03:02]}  e5 {[%clk 0:02:08]} 11. Nxc7 {[%clk 0:03:01]}  Qxc7 {[%clk 0:02:09]} 12. Be2 {[%clk 0:02:57]}  e4 {[%clk 0:01:46]} 13. Ng5 {[%clk 0:02:58]}  b6 {[%clk 0:01:42]} 14. Rc1 {[%clk 0:02:56]}  bxc5 {[%clk 0:01:34]} 15. dxc5 {[%clk 0:02:57]}  Ne5 {[%clk 0:01:33]} 16. Bc3 {[%clk 0:02:18]}  h6 {[%clk 0:01:26]} 17. h4 {[%clk 0:02:18]}  Re8 {[%clk 0:01:21]} 18. Nh3 {[%clk 0:02:16]}  Bb7 {[%clk 0:00:54]} 19. Nf4 {[%clk 0:02:11]}  Bc6 {[%clk 0:00:53]} 20. Bd4 {[%clk 0:02:08]}  Rab8 {[%clk 0:00:50]} 21. g4 {[%clk 0:01:42]}  Nf3+ {[%clk 0:00:16]} 22. Bxf3 {[%clk 0:01:42]}  exf3 {[%clk 0:00:16]} 23. Qxf3 {[%clk 0:01:33]}  Ne4 {[%clk 0:00:16]} 24. O-O {[%clk 0:01:26]}  Nd2 {[%clk 0:00:16]} 25. Qg3 {[%clk 0:01:26]}  Nxf1 {[%clk 0:00:15]} 26. Rxf1 {[%clk 0:01:27]}  f6 {[%clk 0:00:08]} 27. g5 {[%clk 0:01:24]}  fxg5 {[%clk 0:00:08]} 28. hxg5 {[%clk 0:01:24]}  hxg5 {[%clk 0:00:09]} 29. Qxg5 {[%clk 0:01:23]}  Re4 {[%clk 0:00:08]} 30. Nxd5 {[%clk 0:01:13]}  Qf7 {[%clk 0:00:01]} 31. Nf6+ {[%clk 0:01:13]}  Kf8 {[%clk 0:00:01]} 32. Nxe4 {[%clk 0:01:13]}  Bxe4 {[%clk 0:00:02]} 33. f3 {[%clk 0:01:03]}  Bd3 {[%clk 0:00:02]} 34. Rf2 {[%clk 0:00:54]}  Rb1+ {[%clk 0:00:02]} 35. Kg2 {[%clk 0:00:55]}  Qd7 {[%clk 0:00:01]} 36. c6 {[%clk 0:00:51]}  Qc7 {[%clk 0:00:01]} 37. Bc5+ {[%clk 0:00:46]}  Ke8 {[%clk 0:00:02]} 38. Qh5+ {[%clk 0:00:37]}  Qf7 {[%clk 0:00:00]} 39. Qh8+ {[%clk 0:00:36]} 1-0


[Site "https://www.chess.com"]

[Event "Titled Tuesday Blitz May 23 Late 2023"]
[White "Schmakel, Sam"]
[Black "Caruana, Fabiano"]
[WhiteFideId "2039311"]
[BlackFideId "2020009"]
[WhiteElo "2356"]
[BlackElo "2837"]
[Result "0-1"]
[Round "03"]
[TimeControl "180+2"]
[Date "2023.05.23"]
[WhiteClock "0:00:00"]
[BlackClock "0:00:09"]

1. d4 {[%clk 0:03:00]}  Nf6 {[%clk 0:02:59]} 2. c4 {[%clk 0:03:01]}  e6 {[%clk 0:03:00]} 3. Nf3 {[%clk 0:03:01]}  d5 {[%clk 0:02:58]} 4. Nc3 {[%clk 0:03:01]}  Bb4 {[%clk 0:02:57]} 5. cxd5 {[%clk 0:02:59]}  exd5 {[%clk 0:02:57]} 6. Bf4 {[%clk 0:02:59]}  Ne4 {[%clk 0:02:55]} 7. Nd2 {[%clk 0:02:52]}  Nxc3 {[%clk 0:02:49]} 8. bxc3 {[%clk 0:02:52]}  Bxc3 {[%clk 0:02:50]} 9. Rc1 {[%clk 0:02:52]}  Ba5 {[%clk 0:02:29]} 10. e3 {[%clk 0:02:39]}  O-O {[%clk 0:02:26]} 11. Bd3 {[%clk 0:02:38]}  c6 {[%clk 0:02:17]} 12. Qh5 {[%clk 0:02:21]}  f5 {[%clk 0:02:04]} 13. Rc2 {[%clk 0:02:15]}  Nd7 {[%clk 0:01:58]} 14. O-O {[%clk 0:02:13]}  Nf6 {[%clk 0:01:57]} 15. Qd1 {[%clk 0:02:01]}  Bc7 {[%clk 0:01:56]} 16. Bxc7 {[%clk 0:01:58]}  Qxc7 {[%clk 0:01:57]} 17. Nf3 {[%clk 0:01:58]}  Be6 {[%clk 0:01:47]} 18. Qb1 {[%clk 0:01:49]}  Rab8 {[%clk 0:01:36]} 19. a4 {[%clk 0:01:47]}  g6 {[%clk 0:01:33]} 20. Qb4 {[%clk 0:01:40]}  Kg7 {[%clk 0:01:23]} 21. Ne5 {[%clk 0:01:34]}  Ng4 {[%clk 0:01:20]} 22. Nxg4 {[%clk 0:01:26]}  fxg4 {[%clk 0:01:21]} 23. Qc5 {[%clk 0:01:26]}  a6 {[%clk 0:01:15]} 24. Rb1 {[%clk 0:01:26]}  Rf7 {[%clk 0:01:12]} 25. a5 {[%clk 0:00:46]}  Rbf8 {[%clk 0:01:06]} 26. Qb6 {[%clk 0:00:38]}  Qe7 {[%clk 0:01:03]} 27. Qb4 {[%clk 0:00:36]}  Qd8 {[%clk 0:00:59]} 28. Rcb2 {[%clk 0:00:33]}  Bc8 {[%clk 0:00:55]} 29. Qc3 {[%clk 0:00:28]}  h5 {[%clk 0:00:52]} 30. g3 {[%clk 0:00:23]}  h4 {[%clk 0:00:51]} 31. e4 {[%clk 0:00:20]}  Qg5 {[%clk 0:00:41]} 32. exd5 {[%clk 0:00:14]}  cxd5 {[%clk 0:00:36]} 33. Re1 {[%clk 0:00:13]}  Qf6 {[%clk 0:00:22]} 34. Bf1 {[%clk 0:00:10]}  Bf5 {[%clk 0:00:20]} 35. Rb6 {[%clk 0:00:06]}  Qg5 {[%clk 0:00:16]} 36. Re5 {[%clk 0:00:06]}  Qd8 {[%clk 0:00:14]} 37. Qb3 {[%clk 0:00:04]}  Be4 {[%clk 0:00:14]} 38. Rxb7 {[%clk 0:00:04]}  Qf6 {[%clk 0:00:13]} 39. Rxf7+ {[%clk 0:00:04]}  Rxf7 {[%clk 0:00:14]} 40. Qe3 {[%clk 0:00:04]}  h3 {[%clk 0:00:13]} 41. Be2 {[%clk 0:00:04]}  Rb7 {[%clk 0:00:12]} 42. Bf1 {[%clk 0:00:02]}  Rb1 {[%clk 0:00:12]} 43. Qe2 {[%clk 0:00:02]}  Qf3 {[%clk 0:00:10]} 44. Qxf3 {[%clk 0:00:01]}  gxf3 {[%clk 0:00:09]} 45. Re7+ {[%clk 0:00:00]}  Kf6 {[%clk 0:00:09]} 0-1


[Site "https://www.chess.com"]

[Event "Titled Tuesday Blitz May 23 Late 2023"]
[White "Duda, Jan-Krzysztof"]
[Black "Jaracz, Pawel"]
[WhiteFideId "1170546"]
[BlackFideId "1102222"]
[WhiteElo "2790"]
[BlackElo "2438"]
[Result "1-0"]
[Round "03"]
[TimeControl "180+2"]
[Date "2023.05.23"]
[WhiteClock "0:01:03"]
[BlackClock "0:00:31"]

1. d4 {[%clk 0:03:00]}  d5 {[%clk 0:02:58]} 2. c4 {[%clk 0:03:00]}  c6 {[%clk 0:02:58]} 3. Nf3 {[%clk 0:02:58]}  Nf6 {[%clk 0:02:58]} 4. Nc3 {[%clk 0:02:59]}  dxc4 {[%clk 0:02:57]} 5. a4 {[%clk 0:02:59]}  Bf5 {[%clk 0:02:57]} 6. Ne5 {[%clk 0:02:59]}  Nbd7 {[%clk 0:02:58]} 7. Nxc4 {[%clk 0:02:59]}  Nb6 {[%clk 0:02:58]} 8. Ne5 {[%clk 0:02:56]}  a5 {[%clk 0:02:58]} 9. f3 {[%clk 0:02:56]}  Nfd7 {[%clk 0:02:56]} 10. e4 {[%clk 0:02:50]}  Nxe5 {[%clk 0:02:55]} 11. exf5 {[%clk 0:02:51]}  Ned7 {[%clk 0:02:53]} 12. Bf4 {[%clk 0:02:42]}  Nf6 {[%clk 0:02:51]} 13. Be5 {[%clk 0:02:33]}  g6 {[%clk 0:02:42]} 14. g4 {[%clk 0:02:24]}  Bg7 {[%clk 0:02:38]} 15. Qb3 {[%clk 0:02:24]}  O-O {[%clk 0:02:28]} 16. fxg6 {[%clk 0:02:16]}  hxg6 {[%clk 0:02:27]} 17. h4 {[%clk 0:02:17]}  Nbd7 {[%clk 0:02:24]} 18. O-O-O {[%clk 0:02:11]}  Nxe5 {[%clk 0:01:56]} 19. dxe5 {[%clk 0:02:10]}  Nd5 {[%clk 0:01:56]} 20. Nxd5 {[%clk 0:01:35]}  cxd5 {[%clk 0:01:56]} 21. Rxd5 {[%clk 0:01:36]}  Qc7+ {[%clk 0:01:52]} 22. Kb1 {[%clk 0:01:36]}  e6 {[%clk 0:01:51]} 23. Rb5 {[%clk 0:01:36]}  Rfd8 {[%clk 0:01:42]} 24. f4 {[%clk 0:01:27]}  Rd2 {[%clk 0:01:36]} 25. h5 {[%clk 0:01:12]}  Rc8 {[%clk 0:01:35]} 26. hxg6 {[%clk 0:01:08]}  Qc1+ {[%clk 0:01:04]} 27. Ka2 {[%clk 0:01:08]}  Rd1 {[%clk 0:00:40]} 28. gxf7+ {[%clk 0:01:06]}  Kf8 {[%clk 0:00:38]} 29. Qa3+ {[%clk 0:01:04]}  Kxf7 {[%clk 0:00:39]} 30. Rxb7+ {[%clk 0:01:04]}  Kg8 {[%clk 0:00:31]} 31. Rxg7+ {[%clk 0:01:03]} 1-0


[Site "https://www.chess.com"]

[Event "Titled Tuesday Blitz May 23 Late 2023"]
[White "Bortnyk, Mykola"]
[Black "Goltsev, Dmitry"]
[WhiteFideId "14120836"]
[BlackFideId "24176710"]
[WhiteElo "2582"]
[BlackElo "2356"]
[Result "1-0"]
[Round "03"]
[TimeControl "180+2"]
[Date "2023.05.23"]
[WhiteClock "0:00:19"]
[BlackClock "0:00:04"]

1. e4 {[%clk 0:03:00]}  e6 {[%clk 0:02:59]} 2. Qe2 {[%clk 0:02:59]}  d5 {[%clk 0:03:00]} 3. exd5 {[%clk 0:02:58]}  Qxd5 {[%clk 0:03:00]} 4. Nc3 {[%clk 0:02:55]}  Qd8 {[%clk 0:03:00]} 5. b3 {[%clk 0:02:56]}  Nc6 {[%clk 0:02:59]} 6. Bb2 {[%clk 0:02:51]}  Nd4 {[%clk 0:02:59]} 7. Qd3 {[%clk 0:02:51]}  e5 {[%clk 0:02:56]} 8. Ne4 {[%clk 0:02:36]}  Bf5 {[%clk 0:02:50]} 9. Nf3 {[%clk 0:02:25]}  Nf6 {[%clk 0:02:40]} 10. Nxd4 {[%clk 0:02:18]}  Bxe4 {[%clk 0:02:30]} 11. Qb5+ {[%clk 0:02:17]}  Nd7 {[%clk 0:02:31]} 12. O-O-O {[%clk 0:01:46]}  c6 {[%clk 0:02:01]} 13. Qe2 {[%clk 0:01:34]}  Bg6 {[%clk 0:01:56]} 14. f4 {[%clk 0:01:28]}  Be7 {[%clk 0:01:32]} 15. fxe5 {[%clk 0:01:13]}  O-O {[%clk 0:01:28]} 16. h4 {[%clk 0:01:09]}  h6 {[%clk 0:01:14]} 17. g4 {[%clk 0:00:58]}  Bxh4 {[%clk 0:01:09]} 18. e6 {[%clk 0:00:58]}  Nc5 {[%clk 0:00:57]} 19. Qe5 {[%clk 0:00:57]}  Qg5 {[%clk 0:00:47]} 20. Nf5 {[%clk 0:00:49]}  Bxf5 {[%clk 0:00:42]} 21. gxf5 {[%clk 0:00:40]}  b6 {[%clk 0:00:40]} 22. Rxh4 {[%clk 0:00:37]}  fxe6 {[%clk 0:00:32]} 23. Rh5 {[%clk 0:00:33]}  Qe7 {[%clk 0:00:22]} 24. Bc4 {[%clk 0:00:31]}  Rad8 {[%clk 0:00:15]} 25. Rg1 {[%clk 0:00:30]}  Rf7 {[%clk 0:00:15]} 26. Rxh6 {[%clk 0:00:29]}  Qd7 {[%clk 0:00:09]} 27. Rh2 {[%clk 0:00:19]}  Re7 {[%clk 0:00:04]} 1-0


[Site "https://www.chess.com"]

[Event "Titled Tuesday Blitz May 23 Late 2023"]
[White "Simonian, Hrair"]
[Black "Fridman, Daniel"]
[WhiteFideId "13302337"]
[BlackFideId "11600454"]
[WhiteElo "2447"]
[BlackElo "2525"]
[Result "1-0"]
[Round "03"]
[TimeControl "180+2"]
[Date "2023.05.23"]
[WhiteClock "0:00:20"]
[BlackClock "0:00:00"]

1. e4 {[%clk 0:03:00]}  c6 {[%clk 0:02:57]} 2. d4 {[%clk 0:03:00]}  d5 {[%clk 0:02:57]} 3. Nc3 {[%clk 0:03:01]}  dxe4 {[%clk 0:02:57]} 4. Nxe4 {[%clk 0:03:02]}  Nf6 {[%clk 0:02:56]} 5. Nxf6+ {[%clk 0:03:02]}  exf6 {[%clk 0:02:57]} 6. c3 {[%clk 0:03:03]}  Bd6 {[%clk 0:02:57]} 7. Bd3 {[%clk 0:03:03]}  O-O {[%clk 0:02:57]} 8. Qc2 {[%clk 0:03:04]}  Re8+ {[%clk 0:02:57]} 9. Ne2 {[%clk 0:03:05]}  h5 {[%clk 0:02:57]} 10. O-O {[%clk 0:02:57]}  h4 {[%clk 0:02:54]} 11. h3 {[%clk 0:02:57]}  Nd7 {[%clk 0:02:51]} 12. Bd2 {[%clk 0:02:57]}  Nf8 {[%clk 0:02:48]} 13. Rae1 {[%clk 0:02:57]}  Be6 {[%clk 0:02:46]} 14. c4 {[%clk 0:02:51]}  Qd7 {[%clk 0:02:40]} 15. f4 {[%clk 0:02:46]}  f5 {[%clk 0:02:33]} 16. Kh1 {[%clk 0:02:40]}  Rac8 {[%clk 0:02:28]} 17. Ng1 {[%clk 0:02:37]}  Ng6 {[%clk 0:02:24]} 18. Qc1 {[%clk 0:02:24]}  b5 {[%clk 0:02:18]} 19. b3 {[%clk 0:02:17]}  bxc4 {[%clk 0:02:08]} 20. bxc4 {[%clk 0:02:18]}  Be7 {[%clk 0:02:01]} 21. Nf3 {[%clk 0:02:15]}  Bf6 {[%clk 0:02:01]} 22. Bc3 {[%clk 0:02:11]}  Qd6 {[%clk 0:01:24]} 23. Ne5 {[%clk 0:02:08]}  Bd7 {[%clk 0:01:21]} 24. Qc2 {[%clk 0:02:02]}  Ne7 {[%clk 0:01:21]} 25. c5 {[%clk 0:01:57]}  Qc7 {[%clk 0:01:18]} 26. Bc4 {[%clk 0:01:55]}  Be6 {[%clk 0:01:18]} 27. Bxe6 {[%clk 0:01:43]}  fxe6 {[%clk 0:01:18]} 28. Nc4 {[%clk 0:01:43]}  Nd5 {[%clk 0:01:11]} 29. Nd6 {[%clk 0:01:41]}  Rcd8 {[%clk 0:01:11]} 30. Nxe8 {[%clk 0:01:39]}  Rxe8 {[%clk 0:01:11]} 31. Qd2 {[%clk 0:01:25]}  Kf7 {[%clk 0:01:11]} 32. Rb1 {[%clk 0:01:21]}  Rb8 {[%clk 0:01:07]} 33. Rxb8 {[%clk 0:01:14]}  Qxb8 {[%clk 0:01:06]} 34. Qb2 {[%clk 0:01:15]}  Qc7 {[%clk 0:00:40]} 35. Bd2 {[%clk 0:01:11]}  Kg6 {[%clk 0:00:35]} 36. Rb1 {[%clk 0:01:07]}  Nxf4 {[%clk 0:00:18]} 37. Qb7 {[%clk 0:01:05]}  Nd5 {[%clk 0:00:15]} 38. Qxc7 {[%clk 0:01:01]}  Nxc7 {[%clk 0:00:16]} 39. Rb7 {[%clk 0:01:02]}  Nd5 {[%clk 0:00:14]} 40. Rxa7 {[%clk 0:00:57]}  Bxd4 {[%clk 0:00:14]} 41. a4 {[%clk 0:00:53]}  e5 {[%clk 0:00:15]} 42. a5 {[%clk 0:00:51]}  e4 {[%clk 0:00:15]} 43. a6 {[%clk 0:00:44]}  e3 {[%clk 0:00:15]} 44. Be1 {[%clk 0:00:43]}  Bxc5 {[%clk 0:00:15]} 45. Rd7 {[%clk 0:00:41]}  Nb4 {[%clk 0:00:11]} 46. a7 {[%clk 0:00:38]}  Bxa7 {[%clk 0:00:11]} 47. Rxa7 {[%clk 0:00:38]}  Nc2 {[%clk 0:00:11]} 48. Bc3 {[%clk 0:00:33]}  f4 {[%clk 0:00:11]} 49. Kg1 {[%clk 0:00:30]}  Kf5 {[%clk 0:00:09]} 50. Rxg7 {[%clk 0:00:27]}  Ke4 {[%clk 0:00:10]} 51. Rd7 {[%clk 0:00:24]}  c5 {[%clk 0:00:09]} 52. Kf1 {[%clk 0:00:23]}  Nd4 {[%clk 0:00:10]} 53. Bxd4 {[%clk 0:00:22]}  cxd4 {[%clk 0:00:10]} 54. Ke2 {[%clk 0:00:23]}  Ke5 {[%clk 0:00:10]} 55. Kd3 {[%clk 0:00:22]}  f3 {[%clk 0:00:08]} 56. gxf3 {[%clk 0:00:22]}  Kf4 {[%clk 0:00:09]} 57. Rxd4+ {[%clk 0:00:22]}  Kxf3 {[%clk 0:00:00]} 58. Rxh4 {[%clk 0:00:20]} 1-0


[Site "https://www.chess.com"]

[Event "Titled Tuesday Blitz May 23 Late 2023"]
[White "Kramnik, Vladimir"]
[Black "Camilla_Lee"]
[WhiteFideId "4101588"]
[WhiteElo "2703"]
[BlackElo "2678"]
[Result "1-0"]
[Round "03"]
[TimeControl "180+2"]
[Date "2023.05.23"]
[WhiteClock "0:00:50"]
[BlackClock "0:00:30"]

1. c4 {[%clk 0:03:00]}  b6 {[%clk 0:02:59]} 2. Nc3 {[%clk 0:02:58]}  e6 {[%clk 0:02:58]} 3. Nf3 {[%clk 0:02:56]}  Bb7 {[%clk 0:02:57]} 4. e4 {[%clk 0:02:54]}  d5 {[%clk 0:02:44]} 5. cxd5 {[%clk 0:02:50]}  exd5 {[%clk 0:02:44]} 6. exd5 {[%clk 0:02:50]}  Nf6 {[%clk 0:02:44]} 7. Bb5+ {[%clk 0:02:49]}  Nbd7 {[%clk 0:02:43]} 8. O-O {[%clk 0:02:39]}  Be7 {[%clk 0:02:44]} 9. Ne5 {[%clk 0:02:37]}  O-O {[%clk 0:02:34]} 10. Nc6 {[%clk 0:02:37]}  Bxc6 {[%clk 0:02:28]} 11. Bxc6 {[%clk 0:02:38]}  Rb8 {[%clk 0:02:27]} 12. d4 {[%clk 0:02:37]}  h6 {[%clk 0:02:23]} 13. Re1 {[%clk 0:02:36]}  Bd6 {[%clk 0:02:23]} 14. Qf3 {[%clk 0:02:28]}  a6 {[%clk 0:02:21]} 15. a4 {[%clk 0:02:24]}  Re8 {[%clk 0:02:14]} 16. Bf4 {[%clk 0:02:24]}  Rxe1+ {[%clk 0:01:59]} 17. Rxe1 {[%clk 0:02:23]}  Qf8 {[%clk 0:01:59]} 18. g3 {[%clk 0:02:07]}  Rd8 {[%clk 0:01:56]} 19. Kg2 {[%clk 0:01:56]}  Nb8 {[%clk 0:01:54]} 20. Bb7 {[%clk 0:01:54]}  Bxf4 {[%clk 0:01:44]} 21. Qxf4 {[%clk 0:01:53]}  Qd6 {[%clk 0:01:44]} 22. Qxd6 {[%clk 0:01:48]}  Rxd6 {[%clk 0:01:45]} 23. f4 {[%clk 0:01:41]}  Kf8 {[%clk 0:01:42]} 24. Kf3 {[%clk 0:01:40]}  Rd7 {[%clk 0:01:37]} 25. b4 {[%clk 0:01:38]}  Re7 {[%clk 0:01:37]} 26. Rc1 {[%clk 0:01:34]}  Ke8 {[%clk 0:01:26]} 27. a5 {[%clk 0:01:29]}  b5 {[%clk 0:01:24]} 28. g4 {[%clk 0:01:19]}  Kd7 {[%clk 0:01:22]} 29. g5 {[%clk 0:01:14]}  hxg5 {[%clk 0:01:15]} 30. fxg5 {[%clk 0:01:14]}  Ne8 {[%clk 0:01:14]} 31. Ne4 {[%clk 0:01:12]}  Nd6 {[%clk 0:01:10]} 32. Nc5+ {[%clk 0:01:09]}  Kd8 {[%clk 0:01:08]} 33. Bxa6 {[%clk 0:01:05]}  f6 {[%clk 0:01:04]} 34. Nb7+ {[%clk 0:01:02]}  Kd7 {[%clk 0:00:57]} 35. Nxd6 {[%clk 0:01:01]}  Kxd6 {[%clk 0:00:58]} 36. Bb7 {[%clk 0:00:52]}  fxg5 {[%clk 0:00:50]} 37. a6 {[%clk 0:00:52]}  Nxa6 {[%clk 0:00:43]} 38. Rc6+ {[%clk 0:00:50]}  Kxd5 {[%clk 0:00:30]} 39. Rxc7+ {[%clk 0:00:50]} 1-0


[Site "https://www.chess.com"]